bitfinex/quotes_ETHUSD_20260113
["timestamp","ask_amount","ask_price","bid_price","bid_amount"]
[1768307824247,0.001,3133.1,3132.9,0.34306231]
[1768307828462,0.251,3133.5,3133.0,0.95186862]
[1768307828644,0.251,3133.8,3133.1,0.95186862]
[1768307829362,1.2084927,3133.8,3133.1,0.95186862]
[1768307829796,0.9574927,3133.8,3132.9,4.48679113]
[1768307829952,0.9574927,3133.8,3133.0,0.42158121]
[1768307830345,0.9574927,3133.8,3133.0,1.37344983]
[1768307831047,7.33972456,3133.7,3133.0,1.37344983]
[1768307831774,0.9574927,3133.6,3133.0,0.42158121]
[1768307831955,0.9574927,3133.6,3132.8,4.1458486]
[1768307832156,0.9574927,3133.6,3132.8,3.19397998]
[1768307832476,0.9574927,3133.6,3132.8,4.1458486]
[1768307832978,3.19131961,3133.5,3132.8,4.1458486]
[1768307833181,4.14875978,3133.6,3132.8,4.1458486]
[1768307833543,4.14875978,3133.6,3132.9,0.95186862]
[1768307834246,0.9574927,3133.5,3132.8,3.19397998]
[1768307834441,0.9584927,3133.5,3132.8,3.19397998]
[1768307834874,0.9584927,3133.5,3132.8,4.1458486]
[1768307835094,0.9584927,3133.5,3132.8,3.19398128]
[1768307835244,0.96264356,3133.4,3132.8,0.002]
[1768307837303,4.15406918,3133.4,3132.8,0.002]
[1768307838478,0.96264356,3133.4,3132.8,0.002]
[1768307839186,4.15409167,3133.4,3132.8,0.002]
[1768307839486,0.96264356,3133.3,3132.8,0.002]
[1768307840754,0.96264356,3133.2,3132.8,0.002]
[1768307840953,0.96264356,3133.2,3132.8,0.3465087]
[1768307841485,4.1541115,3133.4,3132.8,0.3465087]
[1768307845294,4.1541115,3133.4,3132.8,0.002]
[1768307845991,4.1541115,3133.4,3133.1,0.002]
[1768307852586,0.95735769,3133.3,3133.1,0.002]
[1768307859300,8.25939428,3133.3,3133.1,0.002]
[1768307859702,7.30203659,3133.3,3133.1,0.002]
[1768307859873,1.47036496,3133.2,3133.1,0.002]
[1768307860669,4.66199013,3133.2,3133.1,0.002]
[1768307860898,0.91897857,3133.1,3132.8,0.002]
[1768307861103,4.66199013,3133.2,3132.8,0.002]
[1768307861303,4.41099013,3133.2,3132.8,0.002]
[1768307861599,0.95743102,3133.1,3132.8,0.002]
[1768307863910,4.14918196,3133.1,3132.8,0.002]
[1768307864279,3.19175094,3133.1,3132.8,0.002]
[1768307864579,0.95743102,3133.0,3132.8,0.002]
[1768307888032,5.13193458,3133.0,3132.7,0.14408939]
[1768307888236,5.13193458,3133.0,3132.5,0.002]
[1768307888237,0.98266448,3132.9,3132.5,0.002]
[1768307890038,0.98266448,3132.8,3132.5,0.002]
[1768307891221,0.98266448,3132.7,3132.5,0.002]
[1768307894301,0.98366448,3132.7,3132.5,0.002]
[1768307899002,1.23466448,3132.7,3132.5,0.002]
[1768307902827,0.252,3132.7,3132.5,0.002]
[1768307905154,4.42466297,3133.1,3132.5,0.002]
[1768307905358,0.95750741,3132.9,3132.5,0.002]
[1768307911354,4.14944277,3132.9,3132.5,0.002]
[1768307911935,0.95750741,3132.9,3132.5,0.002]
[1768307912846,4.1737167,3133.0,3132.5,0.002]
[1768307913161,4.14927578,3133.1,3132.5,0.91042927]
[1768307914772,3.19176837,3133.1,3132.5,0.91042927]
[1768307917065,0.001,3132.8,3132.5,0.91042927]
[1768307917271,0.001,3132.8,3132.6,0.41028212]
[1768307917458,0.001,3132.8,3132.5,0.91042927]
[1768307922934,0.001,3132.8,3132.5,4.1027566]
[1768307932993,0.001,3132.8,3132.5,7.29509498]
[1768307933862,4.17812338,3133.5,3132.7,0.96288927]
[1768307937584,4.17812338,3133.5,3132.8,3.19203268]
[1768307940886,0.001,3133.2,3132.8,3.19203268]
[1768307941381,0.001,3133.2,3132.8,4.15492195]
[1768307945288,0.001,3133.2,3132.9,0.92095678]
[1768307946392,0.001,3133.2,3132.6,0.92095678]
[1768307946688,0.001,3133.2,3132.7,0.92095678]
[1768307947395,0.001,3133.2,3132.8,3.19203268]
[1768307950297,0.001,3133.2,3132.8,6.38406536]
[1768307950504,0.001,3133.2,3132.8,7.30502214]
[1768307951379,0.001,3133.2,3132.8,4.11298946]
[1768307952270,0.001,3133.2,3132.8,7.30502214]
[1768307952799,0.001,3133.2,3132.9,0.92095678]
[1768307952972,0.99416033,3133.5,3132.8,6.63506536]
[1768307953170,0.99416033,3133.5,3132.8,4.36398946]
[1768307953171,0.001,3133.5,3132.8,4.36398946]
[1768307953781,0.99416033,3133.5,3132.8,4.36398946]
[1768307961325,0.001,3133.5,3132.8,4.36398946]
[1768307961535,0.001,3133.5,3132.9,0.96596546]
[1768307961709,3.19232961,3133.5,3132.9,0.96596546]
[1768307962531,0.001,3133.5,3132.9,0.96596546]
[1768307964297,0.95189384,3133.5,3132.8,0.251]
[1768307964719,0.001,3133.2,3132.8,0.251]
[1768307965427,0.001,3133.2,3132.8,3.44303166]
[1768307965625,0.001,3133.2,3132.9,0.96596546]
[1768307976453,0.001,3133.2,3133.1,0.002]
[1768308002517,0.9241005,3133.2,3132.9,0.002]
[1768308002684,0.5815986,3133.1,3132.9,0.002]
[1768308007291,0.001,3133.2,3132.9,0.002]
[1768308030704,0.001,3133.2,3132.9,0.94627056]
[1768308032802,0.001,3133.2,3132.9,0.002]
[1768308040083,0.001,3133.5,3133.1,0.95194196]
[1768308040210,0.000806,3134.1,3133.3,0.95194196]
[1768308040404,0.95724772,3134.0,3133.4,0.95194196]
[1768308040711,0.0319164,3134.0,3133.4,0.95194196]
[1768308042112,0.0319164,3134.0,3133.2,4.14356713]
[1768308042919,3.22276992,3134.0,3133.2,4.14356713]
[1768308043501,3.22276992,3134.0,3133.3,0.95194196]
[1768308045443,0.0319164,3134.0,3133.3,4.14341071]
[1768308045644,11.28672579,3134.1,3133.3,4.14341071]
[1768308046022,0.70791247,3134.0,3133.3,3.19146875]
[1768308046828,0.70891247,3133.7,3133.2,3.19162517]
[1768308047735,0.70891247,3133.7,3133.2,6.38325034]
[1768308048626,0.70891247,3133.7,3133.2,3.19162517]
[1768308049353,0.70891247,3133.7,3133.2,6.38325034]
[1768308050454,0.001,3133.7,3133.3,0.95194196]
[1768308050844,0.001,3133.7,3133.3,4.14341997]
[1768308051153,0.001,3133.7,3133.4,0.95194196]
[1768308053840,0.001,3133.7,3133.5,0.95194196]
[1768308057989,3.19022566,3134.6,3133.5,0.95194196]
[1768308057990,0.70791247,3134.3,3133.7,0.00080608]
[1768308058133,0.251,3134.8,3133.9,0.95194196]
[1768308058338,3.1902445,3134.6,3133.9,0.95194196]
[1768308058776,0.0319164,3134.5,3133.9,0.95194196]
[1768308059144,0.9570767,3134.4,3133.9,0.95194196]
[1768308060672,0.9570767,3134.4,3134.0,0.95194196]
[1768308061958,0.9570767,3134.4,3134.1,0.95194196]
[1768308063965,0.9570767,3134.4,3134.2,0.95194196]
[1768308064167,0.002,3134.7,3134.2,0.95194196]
[1768308064569,0.95699427,3134.6,3134.2,0.95194196]
[1768308070149,0.002,3134.3,3134.2,0.95194196]
[1768308070350,0.95899427,3134.6,3134.2,1.3023016]
[1768308070653,0.002,3134.6,3134.2,0.95194196]
[1768308070875,0.95699427,3134.5,3134.2,0.95194196]
[1768308071891,0.002,3134.6,3134.2,0.95194196]
[1768308072396,0.95899427,3134.6,3134.2,0.95194196]
[1768308076352,0.70791247,3134.5,3134.0,3.19073475]
[1768308076557,0.70791247,3134.5,3133.9,3.19090573]
[1768308076886,0.95699427,3134.5,3133.9,4.18643538]
[1768308077187,0.95699427,3134.5,3134.0,0.99552965]
[1768308077409,4.88883922,3134.3,3133.8,0.99552965]
[1768308077685,4.88883922,3133.9,3133.7,0.00080608]
[1768308077914,4.88883922,3133.9,3133.2,0.99552965]
[1768308077915,4.88883922,3133.7,3133.2,0.99552965]
[1768308078059,3.1910141,3133.8,3133.2,0.99552965]
[1768308078488,0.95720801,3133.8,3133.2,4.18714862]
[1768308078852,0.95720801,3133.8,3133.3,0.99552965]
[1768308082483,0.95720801,3133.8,3133.6,0.001]
[1768308084798,3.19155924,3134.1,3133.6,0.99652965]
[1768308084954,0.95720801,3134.0,3133.6,0.99652965]
[1768308093014,0.95720801,3134.0,3133.6,4.18773963]
[1768308094514,0.95797439,3134.1,3133.6,4.18773963]
[1768308094715,0.002,3133.7,3133.6,4.18773963]
[1768308094903,0.70791247,3134.0,3133.6,3.19220998]
[1768308095118,0.70991247,3134.0,3133.6,3.19220998]
[1768308096619,0.70991247,3134.0,3133.6,0.001]
[1768308096805,0.002,3134.0,3133.6,0.001]
[1768308097112,0.002,3134.0,3133.6,0.03291217]
[1768308097313,0.002,3134.0,3133.6,5.79303428]
[1768308097512,0.002,3134.0,3133.6,0.90419506]
[1768308098607,0.002,3134.0,3133.6,4.09535135]
[1768308101001,0.002,3134.0,3133.6,7.28656911]
[1768308101627,0.002,3134.0,3133.7,0.90319506]
[1768308102004,0.70991247,3134.3,3133.7,0.00080616]
[1768308103933,0.002,3134.3,3133.7,0.00080616]
[1768308104222,0.002,3134.3,3133.7,0.90400122]
[1768308104824,0.002,3134.3,3133.9,0.90319506]
[1768308107621,0.002,3134.0,3133.9,0.90319506]
[1768308110616,0.70991247,3134.3,3133.7,0.00080616]
[1768308112320,0.002,3134.3,3133.7,0.00080616]
[1768308116744,0.002,3134.3,3133.8,0.90319506]
[1768308116941,0.70991247,3134.3,3133.7,4.88964538]
[1768308117453,0.70991247,3134.3,3133.9,4.88883922]
[1768308119378,0.70991247,3134.3,3134.0,3.19181046]
[1768308120671,0.70991247,3134.3,3134.0,0.001]
[1768308122351,0.002,3134.3,3134.0,0.90419506]
[1768308122678,0.002,3134.3,3134.2,0.90319506]
[1768308142207,0.002,3134.3,3134.0,0.98681141]
[1768308151224,0.002,3134.6,3134.2,0.98581141]
[1768308151428,3e-06,3134.6,3134.3,0.98581141]
[1768308154336,3e-06,3134.6,3134.4,0.41763743]
[1768308157636,3e-06,3134.6,3134.4,1.35693149]
[1768308160366,4.88828702,3135.4,3134.4,1.35693149]
[1768308160367,0.253,3135.6,3134.4,14.45948762]
[1768308160571,0.0319164,3135.4,3134.8,0.93929406]
[1768308161671,0.0327188,3135.5,3134.9,3.18989441]
[1768308161860,0.347492,3135.4,3134.9,3.18989441]
[1768308163975,0.347492,3135.4,3134.9,0.93929406]
[1768308165251,0.0008024,3135.5,3134.9,0.93929406]
[1768308166145,0.0008024,3135.5,3135.0,3.18979266]
[1768308167576,0.002,3135.1,3135.0,3.18979266]
[1768308169480,0.002,3135.4,3135.0,7.31887938]
[1768308170150,0.002,3135.4,3135.2,3.18958918]
[1768308180217,0.002,3135.4,3135.1,4.12894948]
[1768308182503,0.002,3135.4,3135.1,3.18965542]
[1768308183900,0.002,3135.4,3135.0,3.18979266]
[1768308184926,0.002,3135.4,3134.9,0.93929406]
[1768308185073,0.002,3135.4,3134.9,3.18985297]
[1768308189812,0.002,3135.4,3134.8,0.98231487]
[1768308190179,0.002,3135.4,3134.7,3.19081081]
[1768308190601,0.002,3135.4,3134.7,4.17312568]
[1768308190804,0.002,3135.4,3134.8,3.18997323]
[1768308191006,0.002,3135.4,3134.7,4.1731648]
[1768308191504,0.002,3135.4,3135.0,0.001]
[1768308191678,0.002,3135.1,3135.0,0.001]
[1768308207325,0.002,3135.1,3134.7,0.0008052]
[1768308207522,4.88697191,3134.8,3134.2,3.19054852]
[1768308207729,4.88697191,3134.6,3134.2,3.19054852]
[1768308207894,4.88697191,3134.6,3134.2,4.09150583]
[1768308208325,4.88697191,3134.6,3134.2,0.90095731]
[1768308208495,4.88697191,3134.4,3133.8,0.90095731]
[1768308208825,4.88697191,3134.2,3133.8,0.90095731]
[1768308209008,4.88697191,3134.4,3133.9,0.90095731]
[1768308210723,4.88697191,3134.4,3133.9,4.09179026]
[1768308210927,8.56587093,3134.6,3133.9,4.09179026]
[1768308211126,8.07717374,3134.6,3133.9,4.09179026]
[1768308212738,3.19009793,3134.7,3133.9,4.09179026]
[1768308212936,8.07698138,3134.8,3134.0,0.90095731]
[1768308213099,8.32798138,3134.8,3134.0,0.90095731]
[1768308214436,1.15178961,3134.7,3134.0,0.90095731]
[1768308214809,1.15178961,3134.7,3134.1,4.11586625]
[1768308215016,3.44100947,3134.8,3134.1,4.11586625]
[1768308215224,3.44100947,3134.8,3134.2,0.001]
[1768308215938,0.251,3134.9,3134.2,0.9261576]
[1768308216143,0.0319164,3134.8,3134.2,0.9261576]
[1768308217234,3.22188367,3134.9,3134.2,0.9261576]
[1768308217434,1.1549699,3134.8,3134.2,0.9261576]
[1768308220402,1.1549699,3134.8,3134.2,4.11676022]
[1768308220558,4.34498027,3134.8,3134.2,4.11676022]
[1768308221226,4.34498027,3134.8,3134.2,3.19160523]
[1768308222745,3.18993463,3134.9,3134.2,0.001]
[1768308223055,3.22185103,3134.9,3134.2,0.001]
[1768308223451,3.18993463,3134.9,3134.2,0.001]
[1768308223659,3.44084138,3135.0,3134.2,0.001]
[1768308224157,3.18984138,3135.0,3134.2,0.001]
[1768308224365,0.63823541,3134.9,3134.2,0.001]
[1768308224832,3.82815256,3134.9,3134.2,3.19160685]
[1768308226357,3.82815256,3134.9,3134.2,4.11676445]
[1768308226649,3.18991715,3134.9,3134.3,0.9251576]
[1768308226867,0.0319164,3134.9,3134.3,0.9251576]
[1768308227155,0.002,3135.4,3134.9,0.9251576]
[1768308227554,0.002,3135.0,3134.9,0.9251576]
[1768308234262,0.002,3135.0,3134.9,4.11505201]
[1768308239265,0.002,3135.0,3134.9,0.9251576]
[1768308239465,0.002,3135.0,3134.8,0.9251576]
[1768308240469,0.002,3135.0,3134.7,3.19089121]
[1768308240868,0.002,3135.0,3134.7,0.00080528]
[1768308241368,0.002,3135.0,3134.7,0.92596288]
[1768308242898,0.002,3135.0,3134.7,0.00080528]
[1768308242899,4.88897191,3135.0,3134.7,0.00080528]
[1768308243038,0.80786628,3134.9,3134.7,0.00080528]
[1768308243239,4.88897191,3135.0,3134.7,0.00080528]
[1768308243471,4.88697191,3134.8,3134.2,0.001]
[1768308243638,4.88697191,3134.6,3134.2,0.001]
[1768308244741,4.88697191,3134.4,3134.2,0.001]
[1768308244942,8.07739359,3134.4,3134.2,0.001]
[1768308245272,0.80773936,3134.3,3134.2,0.001]
[1768308245472,3.19042168,3134.4,3134.2,0.001]
[1768308245673,3.19035032,3134.5,3134.2,0.001]
[1768308246242,4.88697191,3134.4,3134.2,0.001]
[1768308247040,8.07721586,3134.6,3134.2,0.001]
[1768308251380,3.22225964,3134.5,3134.2,0.001]
[1768308251583,0.81092316,3134.4,3134.2,0.001]
[1768308253688,0.0319164,3134.5,3134.2,0.001]
[1768308258899,3.22223281,3134.5,3134.2,0.001]
[1768308259101,6.41254922,3134.5,3133.9,0.94813086]
[1768308259269,6.41254922,3134.5,3133.9,0.94713086]
[1768308259469,3.19050505,3134.3,3133.9,0.94713086]
[1768308259688,3.22242145,3134.3,3133.7,0.9507151]
[1768308263002,3.19050505,3134.3,3133.7,0.9507151]
[1768308265305,0.002,3134.0,3133.7,0.9507151]
[1768308265478,0.002,3134.0,3133.8,0.94990894]
[1768308267991,0.002,3134.0,3133.7,0.00080616]
[1768308268197,0.002,3134.0,3133.7,0.9507151]
[1768308271202,0.002,3134.0,3133.8,0.94990894]
[1768308275108,0.002,3134.0,3133.7,0.00080616]
[1768308275709,0.002,3134.0,3133.7,0.95750439]
[1768308292703,0.002,3134.0,3133.8,0.95669823]
[1768308302880,0.002,3134.0,3133.8,4.14767502]
[1768308303102,0.002,3134.0,3133.8,0.95669823]
[1768308308001,0.002,3134.0,3133.8,4.14769479]
[1768308308289,0.002,3134.0,3133.9,0.99238121]
[1768308310499,0.002,3134.3,3134.0,0.99238121]
[1768308311689,3.85906681,3134.3,3134.0,0.99238121]
[1768308311889,0.002,3134.0,3133.8,0.99238121]
[1768308314373,0.002,3134.0,3133.7,0.00080616]
[1768308315000,0.002,3134.0,3133.6,0.99338121]
[1768308324013,0.002,3134.0,3133.9,0.001]
[1768308324215,0.002,3134.0,3133.6,0.99338121]
[1768308324393,0.002,3134.0,3133.6,0.99238121]
[1768308324592,0.002,3134.0,3133.4,0.90640534]
[1768308324914,3.19091228,3133.9,3133.4,0.90640534]
[1768308325085,3.19091228,3133.9,3133.2,4.0980302]
[1768308325286,3.19091228,3133.9,3133.2,4.3490302]
[1768308325715,3.19091228,3133.9,3133.2,1.15740534]
[1768308326716,3.19091228,3133.9,3133.2,4.34902955]
[1768308328186,3.19091228,3133.9,3133.3,0.90640534]
[1768308329193,3.78062241,3134.0,3133.4,0.90640534]
[1768308329413,3.19283907,3134.0,3133.4,0.90640534]
[1768308329811,0.002,3134.0,3133.4,0.90640534]
[1768308330027,0.002,3134.0,3133.6,0.90640534]
[1768308330320,3.19283102,3134.0,3133.3,0.90640534]
[1768308331623,0.002,3134.0,3133.3,0.90640534]
[1768308331823,0.73890259,3134.0,3133.3,0.90640534]
[1768308332221,0.73890259,3134.0,3133.4,0.90640534]
[1768308333248,0.73890259,3134.0,3133.5,0.90640534]
[1768308333726,0.002,3134.0,3133.6,0.90640534]
[1768308334127,0.002,3134.0,3133.7,0.90640534]
[1768308334728,0.002,3134.0,3133.5,0.99486086]
[1768308335460,0.002,3134.0,3133.5,4.18617329]
[1768308335662,0.002,3134.0,3133.7,0.001]
[1768308339628,3.83441583,3134.0,3133.7,0.001]
[1768308340273,0.64359363,3134.0,3133.7,0.001]
[1768308341054,0.002,3134.0,3133.7,0.001]
[1768308344077,0.002,3134.0,3133.4,0.99486086]
[1768308347690,0.002,3134.0,3133.5,0.99486086]
[1768308348046,0.002,3133.7,3133.5,0.99486086]
[1768308351783,0.002,3134.0,3133.5,0.99486086]
[1768308359910,0.002,3133.7,3133.5,0.99486086]
[1768308360110,0.002,3134.0,3133.6,0.41862769]
[1768308360309,0.002,3134.0,3133.5,0.99486086]
[1768308371523,0.002,3133.7,3133.5,0.99486086]
[1768308377726,0.002,3133.7,3133.4,3.1914047]
[1768308378201,0.002,3133.7,3133.4,4.13059465]
[1768308380132,0.002,3133.7,3133.4,0.93918995]
[1768308381536,0.002,3133.7,3133.4,4.13060115]
[1768308382735,0.002,3133.7,3133.4,0.93918995]
[1768308384235,0.002,3133.7,3133.4,4.13058826]
[1768308386345,0.002,3133.7,3133.4,0.93918995]
[1768308388744,0.002,3133.7,3133.4,4.13060541]
[1768308390552,0.002,3133.7,3133.4,0.93918995]
[1768308390856,0.002,3133.7,3133.3,3.19147892]
[1768308391354,0.002,3133.7,3133.3,4.13066887]
[1768308394952,0.002,3133.7,3133.6,0.002]
[1768308417638,0.002,3133.7,3133.6,0.96382063]
[1768308425642,0.002,3133.7,3133.6,0.002]
[1768308432486,0.002,3134.0,3133.6,0.002]
[1768308434687,0.98899692,3134.0,3133.6,0.002]
[1768308435268,1.726109,3134.0,3133.6,0.002]
[1768308435670,0.93937893,3133.9,3133.6,0.002]
[1768308436995,3.92992554,3134.0,3133.6,0.002]
[1768308443007,0.002,3133.7,3133.6,0.002]
[1768308444104,0.94137893,3133.7,3132.9,4.1874996]
[1768308444304,0.94137893,3133.7,3133.0,0.99361555]
[1768308444603,0.002,3133.7,3133.0,0.99361555]
[1768308445376,0.002,3133.7,3132.8,0.99561555]
[1768308445599,0.253,3133.7,3133.1,0.99361555]
[1768308446175,3.19320236,3133.7,3133.1,0.99361555]
[1768308446407,0.31932024,3133.6,3133.2,0.99361555]
[1768308447199,3.19311718,3133.7,3133.2,0.99361555]
[1768308447379,0.002,3133.7,3133.2,0.99361555]
[1768308447582,0.002,3133.7,3133.3,0.99361555]
[1768308448676,0.002,3133.7,3133.5,0.99361555]
[1768308448999,0.002,3134.0,3133.7,0.99361555]
[1768308449581,0.002,3134.0,3133.8,0.99361555]
[1768308451408,0.002,3134.0,3133.9,0.99361555]
[1768308451713,0.002,3134.3,3134.1,0.99361555]
[1768308458514,0.002,3134.3,3133.7,0.00080624]
[1768308458718,0.002,3134.3,3133.8,0.99874277]
[1768308458915,0.002,3134.3,3133.9,0.99874277]
[1768308460598,0.002,3134.3,3133.7,0.00080624]
[1768308460829,0.97091904,3134.1,3133.7,0.00080624]
[1768308461122,3.22274774,3134.0,3133.7,0.00080624]
[1768308461309,3.22267043,3134.1,3133.7,0.00080624]
[1768308464837,3.7771322,3134.2,3133.7,0.00080624]
[1768308465019,3.7771322,3134.2,3133.7,0.99954901]
[1768308465523,3.7771322,3134.2,3133.7,0.00080624]
[1768308465930,0.76046157,3134.1,3133.7,0.00080624]
[1768308466129,0.79237797,3134.1,3133.7,0.00080624]
[1768308466339,0.76046157,3134.1,3133.7,0.00080624]
[1768308466545,0.76046157,3134.1,3134.0,0.001]
[1768308468268,3.19060968,3134.2,3134.0,0.001]
[1768308471670,6.3812877,3134.2,3134.0,0.001]
[1768308475789,3.19060968,3134.2,3134.0,0.001]
[1768308482867,6.3812877,3134.2,3134.0,0.001]
[1768308486548,3.22445869,3134.3,3134.0,0.95547511]
[1768308486870,3.19254229,3134.3,3134.0,0.95547511]
[1768308487040,3.95485241,3134.3,3134.0,0.001]
[1768308487767,7.1453947,3134.3,3134.0,0.001]
[1768308504884,5.86263917,3134.1,3133.7,0.00080624]
[1768308505064,0.0319164,3134.0,3133.7,0.00080624]
[1768308505259,1.00260014,3134.0,3133.7,0.00080624]
[1768308505451,3.19105079,3133.8,3133.1,4.17959395]
[1768308507185,4.16165017,3133.9,3133.1,9.07154938]
[1768308507398,4.16165017,3133.9,3133.1,4.17959395]
[1768308507601,4.16165017,3133.9,3133.2,0.98792058]
[1768308509399,0.97068374,3133.9,3133.2,0.98792058]
[1768308510094,4.16161306,3133.9,3133.2,4.1795335]
[1768308510892,0.97068374,3133.9,3133.2,4.1795335]
[1768308512976,0.97068374,3133.9,3133.5,0.001]
[1768308514078,4.16222934,3134.1,3133.5,0.001]
[1768308517505,7.3529687,3134.1,3133.5,0.001]
[1768308518501,4.16222934,3134.1,3133.5,0.001]
[1768308518917,7.3529687,3134.1,3133.5,0.001]
[1768308521318,4.16222934,3134.1,3133.5,0.001]
[1768308522905,3.19152373,3134.1,3133.5,0.001]
[1768308524470,0.002,3133.8,3133.5,0.001]
[1768308525078,0.002,3133.8,3133.5,0.41196269]
[1768308532216,0.002,3133.8,3133.5,0.001]
[1768308541786,0.95267955,3133.8,3133.5,0.001]
[1768308543420,0.002,3133.8,3133.5,0.001]
[1768308546512,0.97880747,3133.8,3133.5,0.001]
[1768308549238,0.97880747,3133.8,3132.7,0.1664793]
[1768308549239,0.97680747,3133.6,3132.7,0.1664793]
[1768308549542,0.251,3133.7,3132.7,3.19207496]
[1768308549543,0.97680747,3133.4,3132.7,3.19207496]
[1768308549832,0.97680747,3133.4,3132.7,2.91654]
[1768308551293,3.19152331,3133.3,3132.6,4.09339404]
[1768308551723,4.16833078,3133.3,3132.6,0.90120679]
[1768308554702,0.97680747,3133.2,3132.5,0.002]
[1768308554898,1.71279288,3133.1,3132.5,0.002]
[1768308555204,0.91827328,3133.0,3132.5,0.002]
[1768308555899,0.91827328,3132.9,3132.5,0.002]
[1768308556105,0.91827328,3132.8,3132.1,0.002]
[1768308556934,4.11035173,3132.8,3132.1,0.002]
[1768308558532,4.8656878,3132.8,3132.1,0.002]
[1768308559401,4.8656878,3132.8,3132.4,0.001]
[1768308562130,0.75533607,3132.8,3132.4,0.001]
[1768308564332,3.94736908,3132.8,3132.4,0.001]
[1768308564708,0.75533607,3132.8,3132.4,0.001]
[1768308565041,0.251,3133.0,3132.4,0.9817199]
[1768308565813,5.80356658,3133.1,3132.4,0.9817199]
[1768308566018,5.09701944,3133.1,3132.4,0.9817199]
[1768308566437,0.95754103,3133.2,3132.5,0.9807199]
[1768308566617,0.251,3133.4,3132.6,0.9807199]
[1768308567538,0.91827328,3133.4,3132.6,0.9807199]
[1768308567739,0.73009831,3133.3,3132.6,0.9807199]
[1768308567918,1.64837159,3133.3,3132.6,0.9807199]
[1768308568122,0.91827328,3133.2,3132.4,9.06670564]
[1768308568729,3.19172704,3133.1,3132.4,9.06670564]
[1768308569814,4.11000032,3133.1,3132.4,9.06670564]
[1768308570537,0.91827328,3133.1,3132.4,9.06670564]
[1768308571122,4.11006039,3133.1,3132.4,9.06670564]
[1768308571945,0.001,3132.8,3132.4,9.06670564]
[1768308577645,0.001,3132.8,3132.5,0.9668448]
[1768308578030,3.19167964,3133.2,3132.6,0.9668448]
[1768308578721,0.98464526,3133.4,3132.6,0.9668448]
[1768308578929,4.17609968,3133.4,3132.7,0.9668448]
[1768308580114,0.98464526,3133.6,3132.8,5.8913732]
[1768308580319,0.251,3133.5,3132.8,5.85945288]
[1768308580544,1.23564526,3133.5,3132.8,5.85945288]
[1768308581051,1.23406379,3133.5,3132.8,5.85945288]
[1768308581546,1.23406379,3133.5,3132.8,9.05139251]
[1768308581848,4.42541466,3133.5,3132.8,9.05139251]
[1768308582350,4.42541466,3133.5,3132.8,4.15878443]
[1768308584451,0.001,3133.2,3132.8,4.15878443]
[1768308584748,0.001,3133.2,3132.9,0.41607844]
[1768308589157,0.001,3133.2,3132.8,0.9668448]
[1768308589321,0.001,3133.2,3132.7,0.9688448]
[1768308589521,0.001,3133.2,3132.7,0.002]
[1768308591421,0.001,3133.2,3132.8,0.9668448]
[1768308593161,0.001,3133.2,3132.7,0.002]
[1768308596332,0.001,3133.2,3133.1,0.002]
[1768308599071,0.001,3133.2,3132.8,0.002]
[1768308599072,7.12109916,3133.2,3132.8,0.002]
[1768308599254,8.10574442,3133.2,3132.8,0.002]
[1768308600375,4.89260808,3132.9,3132.4,0.001]
[1768308600542,0.98464526,3132.7,3132.4,0.001]
[1768308600748,1.59747059,3132.7,3132.4,0.001]
[1768308600948,0.98464526,3132.6,3132.1,0.002]
[1768308601782,0.61282533,3132.7,3132.1,0.9688448]
[1768308601928,0.251,3132.7,3132.1,0.9688448]
[1768308602131,0.251,3132.8,3132.2,0.9668448]
[1768308602335,3.19182891,3133.0,3132.2,4.15947166]
[1768308602559,3.19182891,3133.0,3132.3,0.9668448]
[1768308602769,0.6415534,3132.9,3132.3,0.9668448]
[1768308602972,0.8925534,3132.9,3132.3,0.9668448]
[1768308603269,0.6415534,3132.9,3132.3,0.9668448]
[1768308603568,3.19182891,3133.0,3132.5,5.85945288]
[1768308603569,0.251,3133.0,3132.5,5.85945288]
[1768308603773,0.251,3133.0,3132.5,4.89260808]
[1768308603961,4.4274226,3133.1,3132.5,4.89260808]
[1768308604148,3.19177734,3133.1,3132.5,5.85945288]
[1768308604472,3.19177734,3133.1,3132.6,0.9668448]
[1768308604861,3.95377373,3133.1,3132.6,0.9668448]
[1768308605168,3.95377373,3133.1,3132.3,8.08507511]
[1768308605169,3.95377373,3133.1,3132.4,4.15547304]
[1768308605540,3.19177734,3133.1,3132.4,4.15547304]
[1768308606168,3.19177734,3133.1,3132.5,0.9630401]
[1768308607248,3.19177734,3133.1,3132.3,4.89260808]
[1768308607249,7.30902974,3133.1,3132.3,0.9630401]
[1768308607467,0.92547506,3133.0,3132.3,3.19245816]
[1768308608176,0.92547506,3133.0,3132.2,4.89260808]
[1768308608177,0.92547506,3133.0,3132.4,3.19243389]
[1768308608346,0.92547506,3133.0,3132.8,0.002]
[1768308608548,0.92547506,3133.0,3132.4,3.19243389]
[1768308608549,0.92547506,3132.9,3132.4,3.19243389]
[1768308608747,3.19177734,3133.1,3132.5,0.002]
[1768308609275,3.19177734,3133.1,3132.5,0.9650401]
[1768308614398,4.11814768,3133.2,3132.5,4.15734252]
[1768308614569,0.252,3133.2,3132.6,0.9630401]
[1768308615170,3.19263463,3133.2,3132.6,0.9630401]
[1768308620473,3.85615203,3133.2,3132.6,0.9630401]
[1768308621609,0.001,3132.9,3132.6,0.9630401]
[1768308623313,0.001,3132.9,3132.7,0.9384615]
[1768308623716,4.89260808,3133.6,3132.6,4.89260808]
[1768308623717,0.97094624,3133.8,3132.9,0.9384615]
[1768308623899,0.97094624,3133.8,3133.1,5.83106958]
[1768308623900,3.19112772,3133.7,3133.1,5.83106958]
[1768308624102,0.251,3133.6,3133.1,5.83106958]
[1768308627310,0.251,3133.6,3133.1,0.9384615]
[1768308627905,3.44224363,3133.6,3133.1,0.9384615]
[1768308628585,3.19124363,3133.6,3133.1,0.9384615]
[1768308629621,6.38223612,3133.7,3132.9,0.9384615]
[1768308633232,0.001,3133.4,3132.9,0.9384615]
[1768308634633,0.001,3133.4,3132.9,4.13037196]
[1768308634835,0.001,3133.4,3133.0,0.96055187]
[1768308636454,0.001,3133.4,3133.0,4.15234618]
[1768308638948,0.001,3133.4,3133.1,0.96055187]